bitfinex/quotes_BTCUSD_20251120
["timestamp","ask_amount","ask_price","bid_price","bid_amount"]
[1763663644366,0.4768799,86868.0,86867.0,0.00112572]
[1763663644595,0.4605199,86868.0,86867.0,0.00212572]
[1763663645064,0.4605199,86868.0,86867.0,0.00112572]
[1763663645486,0.4605199,86868.0,86867.0,0.00012572]
[1763663645693,0.4605199,86868.0,86867.0,0.04072572]
[1763663645901,0.00396,86886.0,86867.0,0.04072572]
[1763663646104,0.00396,86886.0,86868.0,0.02435]
[1763663646105,0.4565599,86885.0,86868.0,0.02435]
[1763663646353,0.4565599,86885.0,86868.0,0.15293114]
[1763663646570,0.4565599,86885.0,86884.0,0.01249]
[1763663646800,0.4565599,86885.0,86867.0,0.00012572]
[1763663647014,0.4565599,86883.0,86867.0,0.00112572]
[1763663647241,0.4565599,86883.0,86867.0,0.00012572]
[1763663647476,0.00396,86886.0,86867.0,0.00012572]
[1763663647477,0.4648899,86868.0,86867.0,0.00012572]
[1763663647696,0.4852099,86868.0,86867.0,0.00012572]
[1763663647898,0.4688499,86868.0,86867.0,0.00012572]
[1763663648550,0.4605199,86868.0,86867.0,0.00012572]
[1763663648774,0.4605199,86868.0,86867.0,0.00112572]
[1763663649460,0.4605199,86868.0,86867.0,0.04172572]
[1763663649677,0.4565599,86868.0,86867.0,0.04172572]
[1763663649895,0.4565599,86882.0,86867.0,0.04172572]
[1763663650133,0.4565599,86882.0,86868.0,0.11476708]
[1763663650340,0.4565599,86882.0,86867.0,0.04072572]
[1763663650341,0.4565599,86882.0,86867.0,0.00012572]
[1763663650552,0.4565599,86882.0,86867.0,0.00212572]
[1763663650754,0.4565599,86882.0,86867.0,0.00112572]
[1763663651076,0.4648899,86868.0,86867.0,0.00012572]
[1763663651509,0.4565599,86882.0,86867.0,0.0015461]
[1763663651708,0.02469,86868.0,86867.0,0.00012572]
[1763663651937,0.4812499,86868.0,86867.0,0.00012572]
[1763663652326,0.5022699,86868.0,86867.0,0.0015461]
[1763663652766,0.4565599,86868.0,86867.0,0.0015461]
[1763663652968,0.4565599,86875.0,86867.0,0.0015461]
[1763663653175,0.4565599,86875.0,86867.0,0.00112572]
[1763663653382,0.4565599,86875.0,86874.0,0.00119933]
[1763663654428,0.4565599,86882.0,86874.0,0.04179933]
[1763663654635,0.00396,86903.0,86882.0,0.13101708]
[1763663654845,0.4565599,86902.0,86882.0,0.01625]
[1763663655128,0.4565599,86902.0,86901.0,0.01249]
[1763663655329,0.4565599,86902.0,86891.0,0.323]
[1763663655926,0.4565599,86902.0,86881.0,0.323]
[1763663656367,0.4565599,86902.0,86881.0,0.00012572]
[1763663656776,0.02102,86901.0,86881.0,0.00012572]
[1763663656991,0.4565599,86900.0,86891.0,0.001]
[1763663657196,0.4565599,86902.0,86891.0,0.001]
[1763663657620,0.4565599,86902.0,86891.0,0.02435]
[1763663657821,0.4565599,86902.0,86892.0,0.11476708]
[1763663658047,0.4565599,86902.0,86892.0,0.09207688]
[1763663658259,0.4565599,86902.0,86893.0,0.13911708]
[1763663658594,0.4565599,86938.0,86894.0,0.34735]
[1763663658800,0.00396,86937.0,86910.0,0.78165167]
[1763663658997,0.4565599,86936.0,86910.0,0.0315961]
[1763663659208,0.4565599,86936.0,86911.0,0.11476708]
[1763663659411,0.4565599,86936.0,86909.0,0.01249]
[1763663659621,0.4565599,86936.0,86910.0,0.11476708]
[1763663659819,0.4565599,86936.0,86909.0,0.01249]
[1763663660032,0.4565599,86935.0,86909.0,0.01249]
[1763663660256,0.4565599,86935.0,86910.0,0.11476708]
[1763663660463,0.4565599,86935.0,86909.0,0.01249]
[1763663660671,0.4565599,86935.0,86900.0,0.01249]
[1763663660672,0.02102,86934.0,86900.0,0.01249]
[1763663660885,0.02102,86934.0,86900.0,0.05995071]
[1763663660886,0.4565599,86933.0,86900.0,0.05995071]
[1763663661525,0.00041782,86936.0,86900.0,0.05995071]
[1763663661526,0.4565599,86935.0,86920.0,0.78165167]
[1763663661747,0.4565599,86935.0,86933.0,0.01625]
[1763663661980,0.4565599,86935.0,86934.0,0.01625]
[1763663662202,0.4565599,86935.0,86934.0,0.0406]
[1763663662621,0.4575599,86935.0,86934.0,0.0406]
[1763663663049,0.4565599,86935.0,86934.0,0.0406]
[1763663663463,0.4565599,86935.0,86934.0,0.09370249]
[1763663663667,0.00041782,86936.0,86935.0,0.37510249]
[1763663663910,0.00041782,86936.0,86935.0,0.51421957]
[1763663664132,0.00041782,86936.0,86934.0,0.001]
[1763663664340,0.45656,86935.0,86934.0,0.001]
[1763663664549,0.45656,86935.0,86934.0,0.02535]
[1763663664966,0.45656,86935.0,86934.0,0.02735]
[1763663665206,0.45656,86935.0,86934.0,0.001]
[1763663665427,0.45656,86935.0,86920.0,0.78165167]
[1763663665428,0.45656,86934.0,86904.0,0.0002524]
[1763663665642,0.45656,86935.0,86910.0,0.11476708]
[1763663665849,0.45656,86935.0,86934.0,0.001]
[1763663666271,0.45656,86935.0,86929.0,0.01249]
[1763663666725,0.45656,86935.0,86934.0,0.002]
[1763663666930,0.45656,86935.0,86916.0,0.01249]
[1763663667129,0.45656,86935.0,86920.0,0.78165167]
[1763663667382,0.45656,86935.0,86934.0,0.001]
[1763663667605,0.45656,86935.0,86934.0,0.02535]
[1763663668065,0.00041782,86936.0,86934.0,0.02535]
[1763663668268,0.00041782,86936.0,86935.0,0.43776708]
[1763663668496,0.00041782,86936.0,86935.0,0.323]
[1763663668722,0.45697782,86936.0,86935.0,0.34735]
[1763663669180,0.45697782,86936.0,86928.0,0.02435]
[1763663669414,0.45656,86935.0,86928.0,0.02435]
[1763663670028,0.45656,86935.0,86929.0,0.323]
[1763663670243,0.45656,86935.0,86930.0,0.06210248]
[1763663670419,0.02144,86992.0,86941.0,0.05210249]
[1763663670661,0.45656,86969.0,86962.0,0.11476708]
[1763663670876,0.45656,86969.0,86963.0,0.11378388]
[1763663671078,0.45656,86969.0,86963.0,0.02296]
[1763663671283,0.45656,86969.0,86964.0,0.11476708]
[1763663671489,0.45656,86969.0,86964.0,0.13772708]
[1763663671696,0.45656,86969.0,86964.0,0.02296]
[1763663671875,0.45656,86969.0,86961.0,0.01182]
[1763663672142,0.45656,86969.0,86953.0,0.03478]
[1763663672344,0.45656,86969.0,86953.0,0.01182]
[1763663672711,0.45656,86969.0,86954.0,0.0227]
[1763663673093,0.45656,86969.0,86961.0,0.001]
[1763663673704,0.45656,86969.0,86954.0,0.0227]
[1763663673911,0.45656,86969.0,86964.0,0.001]
[1763663674552,0.45656,86969.0,86968.0,0.01663]
[1763663674963,0.45656,86969.0,86968.0,0.03933]
[1763663675676,0.00396,86997.0,86968.0,0.09143249]
[1763663675865,0.45696,86970.0,86969.0,0.03933]
[1763663676490,0.45696,86970.0,86969.0,0.41443249]
[1763663676614,0.45696,86970.0,86969.0,0.09143249]
[1763663677234,0.0004,86970.0,86969.0,0.09143249]
[1763663677435,0.0004,87000.0,86970.0,0.05210249]
[1763663677644,0.0004,87000.0,86992.0,0.19502957]
[1763663677851,0.45959649,86993.0,86992.0,0.21772957]
[1763663678068,0.45959649,86993.0,86992.0,0.10296249]
[1763663678267,0.45959649,86993.0,86992.0,0.02816]
[1763663678881,0.45959649,86993.0,86992.0,0.07075625]
[1763663679081,0.45959649,86993.0,86992.0,0.02816]
[1763663680075,0.45959649,86993.0,86982.0,0.0227]
[1763663680076,0.45959649,86993.0,86982.0,0.01153]
[1763663680210,0.45656,86992.0,86971.0,0.05210249]
[1763663680429,0.45656,86992.0,86975.0,0.01153]
[1763663680625,0.45656,86990.0,86968.0,0.00012572]
[1763663681051,0.45656,86990.0,86971.0,0.323]
[1763663681211,0.00303649,86993.0,86973.0,0.323]
[1763663681212,0.45656,86992.0,86973.0,0.323]
[1763663681942,0.45656,86992.0,86974.0,0.0227]
[1763663682553,0.45656,86992.0,86980.0,0.78165167]
[1763663682729,0.45656,86992.0,86991.0,0.01153]
[1763663683290,0.45656,86992.0,86991.0,0.03423]
[1763663683701,0.45656,86992.0,86991.0,0.08633249]
[1763663684641,0.45656,86992.0,86991.0,0.09496574]
[1763663684852,0.00303649,86993.0,86991.0,0.09496574]
[1763663684853,0.00303649,86993.0,86992.0,0.37510249]
[1763663685078,0.0004,87020.0,86992.0,0.07480249]
[1763663685291,0.0004,87060.0,87020.0,0.37510249]
[1763663685292,0.00396,87050.0,87020.0,0.37510249]
[1763663685552,0.0004,87060.0,87041.0,0.323]
[1763663685762,0.00396,87067.0,87050.0,0.78165167]
[1763663685979,0.78165167,87100.0,87050.0,0.0227]
[1763663685980,0.00396,87066.0,87050.0,0.0227]
[1763663686408,0.00396,87066.0,87049.0,0.01153]
[1763663686619,0.00437859,87066.0,87049.0,0.01153]
[1763663687679,0.00437859,87066.0,87051.0,0.09902561]
[1763663687887,0.00437859,87066.0,87049.0,0.01153]
[1763663688341,0.00437859,87066.0,87040.0,0.01153]
[1763663688764,0.00437859,87066.0,87033.0,0.323]
[1763663688972,0.00437859,87066.0,87034.0,0.0227]
[1763663689398,0.00437859,87066.0,87021.0,0.48164058]
[1763663689399,0.00437859,87066.0,87022.0,0.0227]
[1763663689606,0.00437859,87066.0,87030.0,0.78165167]
[1763663690023,0.00437859,87066.0,87023.0,0.17417427]
[1763663690024,0.00537859,87066.0,87031.0,0.0227]
[1763663690236,0.00537859,87066.0,87040.0,0.78165167]
[1763663690439,0.00437859,87066.0,87041.0,0.0227]
[1763663690694,0.00437859,87066.0,87038.0,0.323]
[1763663690895,0.00537859,87066.0,87039.0,0.0323]
[1763663691102,0.00537859,87066.0,87041.0,0.11476708]
[1763663691305,0.00537859,87066.0,87039.0,0.0323]
[1763663691483,0.00537859,87066.0,87042.0,0.11476708]
[1763663691687,0.00537859,87066.0,87043.0,0.0227]
[1763663691892,0.00537859,87066.0,87065.0,0.01153]
[1763663692500,0.00437859,87066.0,87065.0,0.01153]
[1763663692803,0.00437859,87066.0,87065.0,0.03423]
[1763663693002,0.00437859,87066.0,87057.0,0.01153]
[1763663693430,0.00437859,87066.0,87048.0,0.01153]
[1763663693660,0.00437859,87066.0,87038.0,0.03423]
[1763663693942,0.00437859,87066.0,87040.0,1.10465167]
[1763663694141,0.00437859,87066.0,87041.0,0.11493394]
[1763663694508,0.00437859,87066.0,87041.0,0.13763394]
[1763663694926,0.00437859,87066.0,87065.0,0.001]
[1763663696209,0.00437859,87066.0,87053.0,0.0227]
[1763663696419,0.00437859,87066.0,87055.0,0.11476708]
[1763663696736,0.00437859,87066.0,87056.0,0.55677329]
[1763663696939,0.00437859,87066.0,87065.0,0.01663]
[1763663697157,0.00437859,87066.0,87057.0,0.0227]
[1763663697279,0.00437859,87066.0,87058.0,0.11476708]
[1763663697823,0.00437859,87066.0,87065.0,0.01663]
[1763663698023,0.00437859,87066.0,87065.0,0.03203971]
[1763663698238,0.00437859,87066.0,87065.0,0.03933]
[1763663698831,0.00437859,87066.0,87051.0,0.323]
[1763663698832,0.00437859,87066.0,87059.0,0.323]
[1763663699031,0.00437859,87066.0,87065.0,0.01663]
[1763663700114,0.00437859,87066.0,87059.0,0.0227]
[1763663700319,0.00437859,87066.0,87057.0,0.323]
[1763663700649,0.00437859,87066.0,87030.0,0.47429688]
[1763663700650,0.00041859,87066.0,87065.0,0.01763]
[1763663701069,0.00041859,87066.0,87065.0,0.001]
[1763663701268,0.00041859,87066.0,87034.0,0.0227]
[1763663701474,0.00041859,87066.0,87023.0,0.05940719]
[1763663701678,0.00041859,87066.0,87019.0,0.12629708]
[1763663701679,0.323,87049.0,87019.0,0.01153]
[1763663702051,0.00396,87048.0,87011.0,0.33453]
[1763663702254,0.00396,87048.0,87030.0,0.46429689]
[1763663702460,0.00396,87048.0,87031.0,0.01378819]
[1763663702671,0.00396,87048.0,87034.0,0.11476708]
[1763663702877,0.00396,87048.0,87035.0,0.01247]
[1763663703082,0.00396,87048.0,87033.0,0.01247]
[1763663703709,0.00396,87048.0,87034.0,0.13818708]
[1763663703906,0.00396,87048.0,87033.0,0.01247]
[1763663704112,0.00396,87048.0,87047.0,0.01636]
[1763663704317,0.00396,87048.0,87034.0,0.02342]
[1763663704487,0.00396,87048.0,87035.0,0.01378755]
[1763663704865,0.00396,87048.0,87034.0,0.02342]
[1763663705429,0.00396,87048.0,87033.0,0.33547]
[1763663705633,0.00396,87048.0,87033.0,0.01247]
[1763663705883,0.00396,87048.0,87034.0,0.02342]
[1763663706065,0.00396,87048.0,87035.0,0.01378755]
[1763663706263,0.00396,87048.0,87047.0,0.01736]
[1763663706466,0.00396,87048.0,87047.0,0.001]
[1763663706683,0.00396,87048.0,87033.0,0.01247]
[1763663707328,0.00396,87048.0,87047.0,0.01636]
[1763663707747,0.00396,87048.0,87047.0,0.001]
[1763663707952,0.00396,87048.0,87047.0,0.04078]
[1763663708124,0.00396,87048.0,87047.0,0.001]
[1763663709885,0.00396,87048.0,87033.0,0.01247]
[1763663710091,0.00396,87048.0,87034.0,0.03720771]
[1763663710311,0.00396,87048.0,87026.0,0.01247]
[1763663710742,0.00396,87048.0,87029.0,0.11476708]
[1763663710973,0.00396,87048.0,87030.0,0.02342]
[1763663711416,0.00396,87048.0,87031.0,0.11476708]
[1763663711628,0.00396,87048.0,87031.0,0.13818708]
[1763663711837,0.00396,87048.0,87031.0,0.02342]
[1763663712053,0.00396,87048.0,87026.0,0.01247]
[1763663712694,0.03218821,87047.0,87026.0,0.01247]
[1763663712904,0.02145216,87046.0,87026.0,0.01247]
[1763663713120,0.46429689,87036.0,86999.0,0.01153]
[1763663713338,0.03218812,87035.0,87005.0,0.323]
[1763663713606,0.46429689,87030.0,87000.0,0.00960741]
[1763663713822,0.46429689,87020.0,86999.0,0.01153]
[1763663714051,0.03614812,87019.0,87000.0,0.11476708]
[1763663714272,0.03219974,87018.0,87001.0,0.02342]
[1763663714487,0.00396,87019.0,87001.0,0.36021294]
[1763663714699,0.00396,87019.0,87002.0,0.07552249]
[1763663714921,0.00396,87019.0,87002.0,0.02342]
[1763663715129,0.00396,87019.0,87003.0,0.34642]
[1763663715352,0.00396,87019.0,87003.0,0.323]
[1763663715777,0.00396,87019.0,87000.0,0.00012572]
[1763663716267,0.00396,87019.0,87002.0,0.323]
[1763663716512,0.00396,87019.0,87002.0,0.3712724]
[1763663716929,0.00396,87019.0,87003.0,0.11476708]
[1763663717150,0.00396,87019.0,87005.0,0.05210249]
[1763663717360,0.00396,87019.0,87006.0,0.02342]
[1763663717803,0.00396,87019.0,87018.0,0.13112708]
[1763663718008,0.00396,87019.0,87018.0,0.46723979]
[1763663718214,0.00396,87019.0,87006.0,0.02342]
[1763663718635,0.00396,87018.0,86993.0,0.02342]
[1763663720313,0.46429689,87010.0,86991.0,0.01153]
[1763663720969,0.00396,87018.0,86991.0,0.01153]
[1763663721161,0.46429689,87010.0,86985.0,0.01247]
[1763663722306,0.29,87017.0,86985.0,0.01247]
[1763663722513,0.00396,87018.0,86971.0,0.34642]
[1763663722514,0.46429689,87010.0,86976.0,0.01247]
[1763663722734,0.46429689,87010.0,86939.0,0.01247]
[1763663722735,0.323,87007.0,86968.0,0.01247]
[1763663722950,0.46429689,87010.0,86968.0,0.01247]
[1763663722951,0.323,87003.0,86968.0,0.01247]
[1763663723157,0.03215719,87002.0,86983.0,0.01247]
[1763663723363,0.02143059,87001.0,86970.0,0.02342]
[1763663723567,0.323,87003.0,86970.0,0.02342]
[1763663723785,0.02143008,87002.0,86970.0,0.02342]
[1763663723999,0.46429689,87010.0,86970.0,0.02342]
[1763663724000,0.323,87009.0,86983.0,0.01247]
[1763663724225,0.03214544,87008.0,86983.0,0.01247]
[1763663724452,0.001,87002.0,86991.0,0.323]
[1763663724655,0.001,87002.0,86993.0,0.323]
[1763663724870,0.001,87002.0,87001.0,0.01636]
[1763663725078,0.46429689,87040.0,87001.0,0.03015294]
[1763663725279,0.00028348,87002.0,87001.0,0.01636]
[1763663725911,0.00028348,87002.0,87000.0,0.00012572]
[1763663726135,0.001,87009.0,87000.0,0.00012572]
[1763663726959,0.46429689,87020.0,87000.0,0.00012572]
[1763663728202,0.11476708,87029.0,87000.0,0.00012572]
[1763663728203,0.323,87028.0,87000.0,0.00012572]
[1763663728408,0.323,87028.0,87001.0,0.001]
[1763663728616,0.46429689,87020.0,87001.0,0.001]
[1763663728817,0.46429689,87020.0,87000.0,0.00012572]
[1763663729450,0.46429689,87030.0,87000.0,0.00012572]
[1763663729650,0.323,87029.0,87000.0,0.00012572]
[1763663729853,0.46429689,87020.0,87000.0,0.00012572]
[1763663730685,0.08491648,87046.0,87000.0,0.066785]
[1763663730894,0.46429689,87030.0,87000.0,0.066785]
[1763663731103,0.46429689,87030.0,87000.0,0.043915]
[1763663731309,0.46429689,87030.0,87001.0,0.02287]
[1763663731514,0.46429689,87020.0,87000.0,0.043915]
[1763663731667,0.00028348,87002.0,87000.0,0.043915]
[1763663732024,0.46429689,87040.0,87001.0,0.03882]
[1763663732151,0.08491648,87046.0,87001.0,0.03882]
[1763663732152,0.46429689,87030.0,87001.0,0.03882]
[1763663732353,0.46429689,87030.0,87000.0,0.00012572]
[1763663732354,0.46429689,87020.0,87000.0,0.00012572]
[1763663732765,0.46429689,87030.0,87001.0,0.15074708]
[1763663732982,0.323,87039.0,87001.0,0.15074708]
[1763663733422,0.46429689,87040.0,87002.0,0.347]
[1763663733633,0.47429688,87060.0,87017.0,0.01663]
[1763663733634,0.46429689,87050.0,87017.0,0.01663]
[1763663733844,0.46429689,87050.0,87002.0,0.347]
[1763663733845,0.00396,87049.0,87019.0,0.024]
[1763663734049,0.00396,87049.0,87011.0,0.323]
[1763663734050,0.46429689,87040.0,87011.0,0.323]
[1763663734257,0.02145632,87048.0,87001.0,0.12674708]
[1763663734258,0.46429689,87030.0,87001.0,0.01198]
[1763663734481,0.29,87029.0,87001.0,0.01198]
[1763663735491,0.46429689,87030.0,87001.0,0.01198]
[1763663735690,0.001,87029.0,87001.0,0.01198]
[1763663735903,0.46429689,87020.0,86992.0,0.323]
[1763663736109,0.00396,87019.0,86993.0,0.11476708]
[1763663736314,0.00396,87019.0,86993.0,0.12856129]
[1763663736517,0.00396,87019.0,86993.0,0.11476708]
[1763663736729,0.00396,87019.0,86992.0,0.024]
[1763663736936,0.00396,87019.0,86993.0,0.01085512]
[1763663737150,0.00025198,87001.0,86992.0,0.024]
[1763663737996,0.00025198,87001.0,87000.0,0.01675572]
[1763663738211,0.00025198,87001.0,87000.0,0.04075572]
[1763663738423,0.00025198,87001.0,87000.0,0.00012572]
[1763663739245,0.00025198,87001.0,87000.0,0.00112572]
[1763663740077,0.28092805,87010.0,87000.0,0.00112572]
[1763663740521,0.00396,87019.0,87001.0,0.01198]
[1763663740936,0.00396,87019.0,87000.0,0.00012572]
[1763663741136,0.46429689,87011.0,87000.0,0.00012572]
[1763663741338,0.46429689,87011.0,87000.0,0.00112572]
[1763663741472,0.00396,87019.0,87000.0,0.00112572]
[1763663741676,0.02152346,87018.0,87001.0,0.01198]
[1763663741878,0.02152356,87017.0,87001.0,0.01198]
[1763663742238,0.00396,87019.0,87001.0,0.01198]
[1763663742438,0.00396,87019.0,87002.0,0.03779278]
[1763663742742,0.00396,87019.0,87003.0,0.40681954]
[1763663742945,0.00396,87019.0,87003.0,0.323]
[1763663743131,0.00396,87019.0,87004.0,0.36079246]
[1763663743327,0.00396,87019.0,87004.0,0.347]
[1763663743518,0.00396,87019.0,87004.0,0.323]
[1763663744290,0.00396,87019.0,87001.0,0.01198]
[1763663744909,0.00396,87019.0,87002.0,0.024]
[1763663745872,0.00396,87019.0,87005.0,0.11476708]
[1763663746109,0.00396,87019.0,87006.0,0.08517943]
[1763663746288,0.00025195,87009.0,87006.0,0.08517943]
[1763663746440,0.00025195,87009.0,87007.0,0.024]
[1763663747130,0.00025195,87009.0,87001.0,0.01198]
[1763663748190,0.00025195,87009.0,87008.0,0.01663]
[1763663748389,0.00025195,87009.0,87008.0,0.03042183]
[1763663748623,0.00025195,87009.0,87008.0,0.05442183]
[1763663748822,0.00396,87019.0,87008.0,0.05442183]
[1763663748823,0.00396,87019.0,87011.0,0.05210249]
[1763663749028,0.00396,87037.0,87021.0,0.323]
[1763663749239,0.00396,87038.0,87036.0,0.01663]
[1763663749644,0.00396,87038.0,87022.0,0.07872969]
[1763663749797,0.00396,87038.0,87013.0,0.024]
[1763663750008,0.00396,87038.0,87015.0,0.06200817]
[1763663750172,0.00396,87038.0,87019.0,0.11476708]
[1763663750373,0.00437833,87038.0,87020.0,0.02007752]
[1763663750568,0.00437833,87038.0,87016.0,0.024]
[1763663750814,0.00437833,87038.0,87013.0,0.06200817]
[1763663750990,0.00437833,87038.0,87011.0,0.001]
[1763663751226,0.00437833,87038.0,87012.0,0.024]
[1763663751450,0.00437833,87038.0,87013.0,0.04281251]
[1763663752096,0.00437833,87038.0,87014.0,0.024]
[1763663752643,0.00437833,87038.0,87013.0,0.36581251]
[1763663752837,0.00437833,87038.0,87010.0,0.06200817]
[1763663753055,0.00437833,87038.0,87007.0,0.06200817]
[1763663753274,0.00437833,87038.0,87008.0,0.38500817]
[1763663753968,0.46429689,87030.0,87006.0,0.06200817]
[1763663754191,0.00437833,87038.0,87001.0,0.01198]
[1763663754192,0.46429689,87020.0,87001.0,0.01198]
[1763663754413,0.00025192,87017.0,87001.0,0.01198]
[1763663754628,0.00396,87016.0,87001.0,0.01198]
[1763663755279,0.00396,87016.0,87001.0,0.01937882]
[1763663755483,0.00396,87016.0,87001.0,0.01198]
[1763663756369,0.00396,87016.0,87002.0,0.024]
[1763663756879,0.00396,87016.0,87001.0,0.01198]
[1763663757534,0.00396,87016.0,86995.0,0.06200817]
[1763663757745,0.00396,87016.0,86994.0,0.06200817]
[1763663757957,0.00396,87016.0,86995.0,0.323]
[1763663758167,0.00396,87016.0,86995.0,0.347]
[1763663758583,0.00396,87016.0,86995.0,0.40900817]
[1763663759186,0.01803371,87011.0,86995.0,0.38500817]
[1763663759467,0.01803371,87011.0,86995.0,0.42999907]
[1763663759817,0.01803371,87011.0,86996.0,0.06200817]
[1763663760436,0.77918962,87010.0,86996.0,0.00012572]
[1763663760667,0.77901723,87010.0,86996.0,0.00012572]
[1763663760908,0.01803371,87011.0,86996.0,0.00012572]
[1763663761044,0.29,87009.0,86996.0,0.00012572]
[1763663761481,0.37510249,87008.0,86996.0,0.00012572]
[1763663761685,0.30318823,87009.0,86971.0,0.06200817]
[1763663761686,0.01149412,87001.0,86971.0,0.06200817]
[1763663761864,0.323,86983.0,86971.0,0.00012567]
[1763663762068,0.323,86983.0,86960.0,0.06200817]
[1763663762069,0.323,86978.0,86950.0,0.0002]
[1763663762270,0.77918962,86960.0,86950.0,0.0002]
[1763663762553,0.00396,86959.0,86950.0,0.0002]
[1763663762760,0.00396,86958.0,86951.0,0.02377]
[1763663762968,0.00396,86958.0,86952.0,0.33680071]
[1763663763180,0.00396,86958.0,86957.0,0.0155]
[1763663763339,0.00396,86958.0,86952.0,0.323]
[1763663763910,0.00396,86958.0,86950.0,0.0002]
[1763663764124,0.00396,86958.0,86951.0,0.11476708]
[1763663764348,0.00396,86958.0,86952.0,0.01380071]
[1763663764543,0.00396,86958.0,86957.0,0.0155]
[1763663764748,0.00396,86958.0,86957.0,0.03927]
[1763663765615,0.00396,86958.0,86952.0,0.001]
[1763663766046,0.00396,86958.0,86957.0,0.0165]
[1763663766289,0.00396,86958.0,86957.0,0.04127]
[1763663766491,0.00396,86958.0,86957.0,0.002]
[1763663767153,0.00396,86958.0,86957.0,0.04127]
[1763663767355,0.00396,86958.0,86957.0,0.002]
[1763663767555,0.00396,86958.0,86957.0,0.001]
[1763663767968,0.00396,86958.0,86957.0,0.04027]
[1763663769038,0.00012536,86978.0,86957.0,0.04027]
[1763663769208,0.00012536,86978.0,86977.0,0.02706]
[1763663769407,0.00012536,86978.0,86977.0,0.01156]
[1763663769820,0.00012536,86978.0,86973.0,0.323]
[1763663770462,0.00012536,86978.0,86960.0,0.01156]
[1763663770672,0.00012536,86978.0,86962.0,0.11476708]
[1763663770884,0.00012536,86978.0,86977.0,0.0155]
[1763663771289,0.00012536,86978.0,86970.0,0.02377]
[1763663771697,0.00012536,86978.0,86977.0,0.0155]
[1763663771903,0.00012536,86978.0,86962.0,0.001]
[1763663772308,0.00012536,86978.0,86960.0,0.03533]
[1763663772518,0.00012536,86978.0,86960.0,0.07775376]
[1763663772725,0.00012536,86978.0,86960.0,0.01156]
[1763663772937,0.77918962,86970.0,86953.0,0.01156]
[1763663773160,0.77918962,86970.0,86947.0,0.01156]
[1763663773841,0.01804041,86977.0,86951.0,0.13853708]
[1763663774048,0.01804041,86977.0,86952.0,0.05398052]
[1763663774473,0.01804041,86977.0,86956.0,0.323]
[1763663774704,0.01804041,86977.0,86957.0,0.02377]
[1763663775384,0.01804041,86977.0,86960.0,0.001]
[1763663775591,0.01804041,86977.0,86961.0,0.02377]
[1763663776224,0.01804041,86977.0,86960.0,0.001]
[1763663776698,0.01804041,86977.0,86953.0,0.02377]
[1763663776905,0.01804041,86977.0,86950.0,0.0002]
[1763663777135,0.77918962,86970.0,86950.0,0.0002]
[1763663778657,0.01804041,86977.0,86951.0,0.02377]
[1763663779080,0.01804041,86977.0,86950.0,0.0002]
[1763663779081,0.77918962,86970.0,86950.0,0.0002]
[1763663780187,0.01804041,86977.0,86950.0,0.0002]
[1763663780538,0.77918962,86960.0,86950.0,0.0002]
[1763663780748,0.00396,86959.0,86950.0,0.0002]
[1763663782440,0.01804509,86957.0,86950.0,0.0002]
[1763663782651,0.00396,86959.0,86950.0,0.0002]
[1763663785022,0.00396,86959.0,86958.0,0.0155]
[1763663785245,0.00396,86959.0,86951.0,0.02377]
[1763663785680,0.01804342,86957.0,86951.0,0.02377]
[1763663786179,0.01804342,86957.0,86956.0,0.0155]
[1763663786422,0.01804342,86957.0,86950.0,0.0002]
[1763663787887,0.01804342,86957.0,86956.0,0.001]
[1763663788330,0.01804342,86957.0,86950.0,0.0002]
[1763663789553,0.01804342,86957.0,86956.0,0.0155]
[1763663789766,0.02200342,86957.0,86950.0,0.0002]
[1763663789971,0.00396,86957.0,86950.0,0.0002]
[1763663790380,0.00396,86957.0,86951.0,0.02288]
[1763663790589,0.00366,86957.0,86950.0,0.0002]
[1763663791421,0.02144688,86956.0,86950.0,0.0002]
[1763663791597,0.0321723,86955.0,86950.0,0.0002]
[1763663791862,0.00366,86957.0,86950.0,0.0002]
[1763663791863,0.03216939,86954.0,86950.0,0.0002]
[1763663792071,0.03216939,86953.0,86950.0,0.0002]
[1763663792276,0.00366,86957.0,86950.0,0.0002]
[1763663792277,0.02144688,86952.0,86950.0,0.0002]
[1763663792451,0.02144688,86951.0,86950.0,0.0002]
[1763663793099,0.02144665,86951.0,86950.0,0.0002]
[1763663793306,0.03949391,86951.0,86950.0,0.0002]
[1763663793721,0.0396192,86951.0,86950.0,0.0002]
[1763663794129,0.01817255,86951.0,86950.0,0.0002]
[1763663794959,0.03962091,86951.0,86950.0,0.0002]
[1763663797712,0.01817255,86951.0,86950.0,0.0002]
[1763663798443,0.01517255,86951.0,86950.0,0.0002]
[1763663798645,0.00012529,86951.0,86950.0,0.0002]
[1763663799156,0.02156144,86951.0,86950.0,0.0002]
[1763663799527,0.00012529,86951.0,86950.0,0.04081]
[1763663799941,0.00012529,86951.0,86950.0,0.0163]
[1763663800360,0.00012529,86951.0,86950.0,0.0002]
[1763663800562,0.02157261,86951.0,86950.0,0.0002]
[1763663800780,0.00012529,86951.0,86950.0,0.0002]
[1763663801144,0.02158405,86951.0,86950.0,0.0002]
[1763663802371,0.02159252,86951.0,86950.0,0.0002]
[1763663802814,0.00012529,86951.0,86950.0,0.0002]
[1763663802968,0.00012529,86951.0,86950.0,0.0163]
[1763663802969,0.02159295,86951.0,86950.0,0.0163]
[1763663803355,0.00012529,86951.0,86950.0,0.0002]
[1763663804480,0.02159135,86951.0,86950.0,0.0002]
[1763663805444,0.03232661,86951.0,86950.0,0.0002]
[1763663805662,0.03232661,86951.0,86928.0,0.0030371]
[1763663805663,0.77918962,86938.0,86928.0,0.0030371]
[1763663805852,0.03616132,86937.0,86928.0,0.0030371]
[1763663806030,0.03220132,86936.0,86928.0,0.0030371]
[1763663806239,0.03219984,86935.0,86928.0,0.0030371]
[1763663806569,0.03219984,86934.0,86928.0,0.0030371]
[1763663806759,0.03219984,86933.0,86928.0,0.0030371]
[1763663806963,0.03219984,86932.0,86928.0,0.0030371]
[1763663807163,0.03219984,86931.0,86928.0,0.0030371]
[1763663807402,0.03219984,86930.0,86928.0,0.0030371]
[1763663807606,0.03219984,86929.0,86928.0,0.0030371]
[1763663809491,0.77918962,86920.0,86910.0,0.0002]